[Event "Titled Tuesday Blitz March 07 Early 2023"]
[White "Melikhov, Evgeny V."]
[Black "Ardila, Oscar Humberto"]
[WhiteFideId "4122046"]
[BlackFideId "4404742"]
[WhiteElo "2158"]
[BlackElo "1911"]
[Result "0-1"]
[Round "07"]
[TimeControl "180+2"]
[Date "2023.03.07"]
[WhiteClock "0:00:13"]
[BlackClock "0:00:20"]

1. d4 {[%clk 0:03:00]}  Nf6 {[%clk 0:02:59]} 2. c4 {[%clk 0:03:01]}  g6 {[%clk 0:02:59]} 3. Nc3 {[%clk 0:03:01]}  Bg7 {[%clk 0:02:59]} 4. e4 {[%clk 0:03:00]}  d6 {[%clk 0:02:59]} 5. f3 {[%clk 0:03:00]}  O-O {[%clk 0:02:59]} 6. Be3 {[%clk 0:03:00]}  c6 {[%clk 0:02:59]} 7. Bd3 {[%clk 0:02:59]}  a6 {[%clk 0:02:59]} 8. Nge2 {[%clk 0:02:59]}  Qc7 {[%clk 0:02:59]} 9. O-O {[%clk 0:02:59]}  Nbd7 {[%clk 0:02:58]} 10. Rc1 {[%clk 0:02:55]}  e5 {[%clk 0:02:57]} 11. d5 {[%clk 0:02:54]}  cxd5 {[%clk 0:02:55]} 12. cxd5 {[%clk 0:02:54]}  Qd8 {[%clk 0:02:52]} 13. b4 {[%clk 0:02:50]}  Nh5 {[%clk 0:02:49]} 14. a4 {[%clk 0:02:36]}  f5 {[%clk 0:02:41]} 15. exf5 {[%clk 0:02:32]}  gxf5 {[%clk 0:02:41]} 16. a5 {[%clk 0:02:28]}  Ndf6 {[%clk 0:02:33]} 17. Na4 {[%clk 0:02:25]}  e4 {[%clk 0:02:30]} 18. Bb1 {[%clk 0:02:10]}  exf3 {[%clk 0:02:04]} 19. gxf3 {[%clk 0:02:10]}  Qe8 {[%clk 0:01:54]} 20. Bd4 {[%clk 0:02:03]}  Bd7 {[%clk 0:01:45]} 21. Nb6 {[%clk 0:02:01]}  Bb5 {[%clk 0:01:42]} 22. Bd3 {[%clk 0:01:54]}  Rd8 {[%clk 0:01:16]} 23. Bxb5 {[%clk 0:01:50]}  Qxb5 {[%clk 0:01:15]} 24. Ng3 {[%clk 0:01:46]}  Nxg3 {[%clk 0:01:06]} 25. hxg3 {[%clk 0:01:45]}  Qxb4 {[%clk 0:01:05]} 26. Rc7 {[%clk 0:01:35]}  Rf7 {[%clk 0:00:56]} 27. Rxf7 {[%clk 0:01:29]}  Kxf7 {[%clk 0:00:55]} 28. Qd3 {[%clk 0:01:13]}  Qxa5 {[%clk 0:00:42]} 29. Qxf5 {[%clk 0:01:12]}  Qb5 {[%clk 0:00:31]} 30. Qe6+ {[%clk 0:01:06]}  Kg6 {[%clk 0:00:28]} 31. g4 {[%clk 0:00:45]}  Qd3 {[%clk 0:00:27]} 32. Bxf6 {[%clk 0:00:39]}  Bxf6 {[%clk 0:00:28]} 33. Kg2 {[%clk 0:00:30]}  Qd2+ {[%clk 0:00:22]} 34. Rf2 {[%clk 0:00:29]}  Qf4 {[%clk 0:00:18]} 35. Nd7 {[%clk 0:00:25]}  Rxd7 {[%clk 0:00:19]} 36. Qxd7 {[%clk 0:00:25]}  Be5 {[%clk 0:00:19]} 37. Qf5+ {[%clk 0:00:24]}  Qxf5 {[%clk 0:00:19]} 38. gxf5+ {[%clk 0:00:24]}  Kxf5 {[%clk 0:00:20]} 39. Rc2 {[%clk 0:00:24]}  b5 {[%clk 0:00:20]} 40. Kf2 {[%clk 0:00:22]}  b4 {[%clk 0:00:20]} 41. Rc4 {[%clk 0:00:22]}  b3 {[%clk 0:00:20]} 42. Rb4 {[%clk 0:00:21]}  b2 {[%clk 0:00:20]} 43. Ke3 {[%clk 0:00:20]}  a5 {[%clk 0:00:20]} 44. Rb5 {[%clk 0:00:18]}  a4 {[%clk 0:00:20]} 45. Kd3 {[%clk 0:00:17]}  a3 {[%clk 0:00:20]} 46. Kc2 {[%clk 0:00:13]}  a2 {[%clk 0:00:20]} 0-1


[Site "https://www.chess.com"]

[Event "Titled Tuesday Blitz March 07 Early 2023"]
[White "Dwilewicz, Katarzyna"]
[Black "Vanek, Tomas"]
[WhiteFideId "1148486"]
[BlackFideId "313459"]
[WhiteElo "2065"]
[BlackElo "2052"]
[Result "1-0"]
[Round "07"]
[TimeControl "180+2"]
[Date "2023.03.07"]
[WhiteClock "0:00:06"]
[BlackClock "0:00:05"]

1. e4 {[%clk 0:03:00]}  c5 {[%clk 0:02:59]} 2. Nf3 {[%clk 0:03:00]}  Nc6 {[%clk 0:02:58]} 3. c3 {[%clk 0:02:56]}  Nf6 {[%clk 0:02:57]} 4. e5 {[%clk 0:02:56]}  Nd5 {[%clk 0:02:57]} 5. d4 {[%clk 0:02:57]}  cxd4 {[%clk 0:02:57]} 6. Bc4 {[%clk 0:02:57]}  e6 {[%clk 0:02:56]} 7. cxd4 {[%clk 0:02:57]}  d6 {[%clk 0:02:56]} 8. exd6 {[%clk 0:02:56]}  Bxd6 {[%clk 0:02:48]} 9. O-O {[%clk 0:02:56]}  O-O {[%clk 0:02:30]} 10. Nc3 {[%clk 0:02:56]}  Nf6 {[%clk 0:02:25]} 11. Bg5 {[%clk 0:02:53]}  Be7 {[%clk 0:02:24]} 12. Re1 {[%clk 0:02:50]}  h6 {[%clk 0:02:24]} 13. Bh4 {[%clk 0:02:49]}  Nb4 {[%clk 0:02:18]} 14. Qe2 {[%clk 0:02:45]}  Nbd5 {[%clk 0:02:17]} 15. Nxd5 {[%clk 0:02:37]}  Nxd5 {[%clk 0:02:16]} 16. Bxe7 {[%clk 0:02:36]}  Nxe7 {[%clk 0:02:15]} 17. Rad1 {[%clk 0:02:33]}  Nd5 {[%clk 0:02:13]} 18. Ne5 {[%clk 0:02:33]}  a6 {[%clk 0:02:09]} 19. Qg4 {[%clk 0:02:14]}  Nf6 {[%clk 0:02:02]} 20. Qh4 {[%clk 0:02:13]}  b5 {[%clk 0:02:02]} 21. Bd3 {[%clk 0:02:11]}  Bb7 {[%clk 0:01:59]} 22. Bb1 {[%clk 0:02:05]}  Rc8 {[%clk 0:01:52]} 23. h3 {[%clk 0:02:01]}  Qd5 {[%clk 0:01:41]} 24. Qg3 {[%clk 0:01:54]}  Rfd8 {[%clk 0:01:07]} 25. Re3 {[%clk 0:01:37]}  b4 {[%clk 0:01:05]} 26. Rf3 {[%clk 0:01:31]}  Kf8 {[%clk 0:01:03]} 27. Qh4 {[%clk 0:00:58]}  Rc7 {[%clk 0:00:47]} 28. Kh2 {[%clk 0:00:49]}  Qd6 {[%clk 0:00:41]} 29. Rg3 {[%clk 0:00:46]}  Qe7 {[%clk 0:00:34]} 30. Bg6 {[%clk 0:00:32]}  Ng8 {[%clk 0:00:16]} 31. Qxe7+ {[%clk 0:00:29]}  Rxe7 {[%clk 0:00:16]} 32. Bc2 {[%clk 0:00:19]}  Rc7 {[%clk 0:00:15]} 33. Bb3 {[%clk 0:00:18]}  Bd5 {[%clk 0:00:14]} 34. Bxd5 {[%clk 0:00:15]}  Rxd5 {[%clk 0:00:14]} 35. Rb3 {[%clk 0:00:16]}  a5 {[%clk 0:00:13]} 36. a3 {[%clk 0:00:16]}  Rb7 {[%clk 0:00:11]} 37. axb4 {[%clk 0:00:14]}  Rxb4 {[%clk 0:00:11]} 38. Rxb4 {[%clk 0:00:14]}  axb4 {[%clk 0:00:11]} 39. f4 {[%clk 0:00:15]}  Nf6 {[%clk 0:00:10]} 40. Kg3 {[%clk 0:00:13]}  Ne4+ {[%clk 0:00:10]} 41. Kf3 {[%clk 0:00:13]}  Nd6 {[%clk 0:00:10]} 42. b3 {[%clk 0:00:09]}  Nf5 {[%clk 0:00:09]} 43. Ke4 {[%clk 0:00:09]}  Nd6+ {[%clk 0:00:09]} 44. Kd3 {[%clk 0:00:08]}  Nb5 {[%clk 0:00:08]} 45. Kc4 {[%clk 0:00:09]}  f6 {[%clk 0:00:04]} 46. Nc6 {[%clk 0:00:07]}  Kf7 {[%clk 0:00:04]} 47. Nxb4 {[%clk 0:00:06]}  Rf5 {[%clk 0:00:03]} 48. g4 {[%clk 0:00:06]}  Nd6+ {[%clk 0:00:03]} 49. Kd3 {[%clk 0:00:05]}  Rxf4 {[%clk 0:00:04]} 50. Nc2 {[%clk 0:00:05]}  Rf3+ {[%clk 0:00:04]} 51. Ne3 {[%clk 0:00:05]}  Rxh3 {[%clk 0:00:03]} 52. b4 {[%clk 0:00:06]}  Nb7 {[%clk 0:00:03]} 53. b5 {[%clk 0:00:06]}  Rg3 {[%clk 0:00:03]} 54. Ra1 {[%clk 0:00:06]}  Rg1 {[%clk 0:00:02]} 55. Ra7 {[%clk 0:00:06]}  Kg6 {[%clk 0:00:01]} 56. Rxb7 {[%clk 0:00:06]}  Kg5 {[%clk 0:00:02]} 57. b6 {[%clk 0:00:07]}  Kf4 {[%clk 0:00:02]} 58. Rxg7 {[%clk 0:00:07]}  Rb1 {[%clk 0:00:03]} 59. b7 {[%clk 0:00:06]}  Rb4 {[%clk 0:00:03]} 60. Nc4 {[%clk 0:00:06]}  Rb3+ {[%clk 0:00:03]} 61. Kc2 {[%clk 0:00:06]}  Rb4 {[%clk 0:00:03]} 62. Nd6 {[%clk 0:00:06]}  Rb6 {[%clk 0:00:03]} 63. Rg8 {[%clk 0:00:05]}  Ke3 {[%clk 0:00:02]} 64. b8=Q {[%clk 0:00:05]}  Rxb8 {[%clk 0:00:03]} 65. Rxb8 {[%clk 0:00:05]}  Kxd4 {[%clk 0:00:04]} 66. Rh8 {[%clk 0:00:06]}  Ke5 {[%clk 0:00:04]} 67. Nf7+ {[%clk 0:00:05]}  Kf4 {[%clk 0:00:04]} 68. Nxh6 {[%clk 0:00:05]}  Kg5 {[%clk 0:00:04]} 69. Nf7+ {[%clk 0:00:04]}  Kf4 {[%clk 0:00:04]} 70. Kd3 {[%clk 0:00:04]}  Kf3 {[%clk 0:00:03]} 71. Rg8 {[%clk 0:00:04]}  e5 {[%clk 0:00:04]} 72. Nd6 {[%clk 0:00:04]}  e4+ {[%clk 0:00:05]} 73. Nxe4 {[%clk 0:00:04]}  f5 {[%clk 0:00:06]} 74. gxf5 {[%clk 0:00:04]}  Kf4 {[%clk 0:00:07]} 75. f6 {[%clk 0:00:05]}  Ke5 {[%clk 0:00:07]} 76. f7 {[%clk 0:00:05]}  Ke6 {[%clk 0:00:06]} 77. f8=Q {[%clk 0:00:05]}  Kd7 {[%clk 0:00:07]} 78. Qf7+ {[%clk 0:00:05]}  Kc6 {[%clk 0:00:07]} 79. Rg6+ {[%clk 0:00:06]}  Kb5 {[%clk 0:00:05]} 80. Qb7+ {[%clk 0:00:06]}  Ka4 {[%clk 0:00:05]} 81. Ra6# {[%clk 0:00:06]} 1-0


[Site "https://www.chess.com"]

[Event "Titled Tuesday Blitz March 07 Early 2023"]
[White "Bruned, Boris"]
[Black "Sadubayev, Airat"]
[WhiteFideId "621790"]
[BlackFideId "13713264"]
[WhiteElo "2049"]
[BlackElo "2129"]
[Result "0-1"]
[Round "07"]
[TimeControl "180+2"]
[Date "2023.03.07"]
[WhiteClock "0:00:07"]
[BlackClock "0:00:15"]

1. b3 {[%clk 0:03:00]}  d5 {[%clk 0:02:58]} 2. Bb2 {[%clk 0:03:01]}  c5 {[%clk 0:02:58]} 3. e3 {[%clk 0:03:01]}  Nc6 {[%clk 0:02:58]} 4. Bb5 {[%clk 0:03:02]}  Nf6 {[%clk 0:02:57]} 5. Nf3 {[%clk 0:03:01]}  Bg4 {[%clk 0:02:51]} 6. h3 {[%clk 0:03:01]}  Bh5 {[%clk 0:02:51]} 7. g4 {[%clk 0:03:01]}  Bg6 {[%clk 0:02:51]} 8. Ne5 {[%clk 0:03:01]}  Qc7 {[%clk 0:02:45]} 9. Bxc6+ {[%clk 0:03:01]}  bxc6 {[%clk 0:02:44]} 10. d3 {[%clk 0:03:00]}  e6 {[%clk 0:02:42]} 11. f4 {[%clk 0:03:01]}  Bd6 {[%clk 0:02:37]} 12. Nd2 {[%clk 0:03:01]}  O-O-O {[%clk 0:02:31]} 13. Qf3 {[%clk 0:02:57]}  Rhg8 {[%clk 0:02:16]} 14. O-O-O {[%clk 0:02:56]}  Nd7 {[%clk 0:02:16]} 15. Nxd7 {[%clk 0:02:49]}  Qxd7 {[%clk 0:02:13]} 16. Rhf1 {[%clk 0:02:42]}  f6 {[%clk 0:02:01]} 17. e4 {[%clk 0:02:35]}  Bf7 {[%clk 0:01:52]} 18. e5 {[%clk 0:02:17]}  Be7 {[%clk 0:01:42]} 19. Kb1 {[%clk 0:02:15]}  Rgf8 {[%clk 0:01:28]} 20. Rde1 {[%clk 0:02:15]}  Kb7 {[%clk 0:01:18]} 21. a4 {[%clk 0:02:05]}  Rb8 {[%clk 0:01:12]} 22. Ka2 {[%clk 0:01:36]}  Ka8 {[%clk 0:01:07]} 23. Qe3 {[%clk 0:00:51]}  Qb7 {[%clk 0:01:01]} 24. Ba3 {[%clk 0:00:46]}  Qb6 {[%clk 0:00:54]} 25. f5 {[%clk 0:00:20]}  fxe5 {[%clk 0:00:44]} 26. fxe6 {[%clk 0:00:19]}  Bxe6 {[%clk 0:00:37]} 27. Qxe5 {[%clk 0:00:17]}  Bf6 {[%clk 0:00:20]} 28. Qxe6 {[%clk 0:00:15]}  Rfe8 {[%clk 0:00:20]} 29. Qd6 {[%clk 0:00:12]}  Red8 {[%clk 0:00:18]} 30. Qxc5 {[%clk 0:00:12]}  Qc7 {[%clk 0:00:17]} 31. Qd6 {[%clk 0:00:09]}  Rxd6 {[%clk 0:00:17]} 32. Bxd6 {[%clk 0:00:09]}  Qxd6 {[%clk 0:00:17]} 33. Re2 {[%clk 0:00:09]}  Qc5 {[%clk 0:00:16]} 34. Nb1 {[%clk 0:00:08]}  Qd4 {[%clk 0:00:16]} 35. c3 {[%clk 0:00:07]}  Qxd3 {[%clk 0:00:16]} 36. Rfe1 {[%clk 0:00:07]}  Qxh3 {[%clk 0:00:15]} 0-1


[Site "https://www.chess.com"]

[Event "Titled Tuesday Blitz March 07 Early 2023"]
[White "Zaksaite, Salomeja"]
[Black "Liu, Yi"]
[WhiteFideId "12801496"]
[BlackFideId "3210588"]
[WhiteElo "2059"]
[BlackElo "2264"]
[Result "1-0"]
[Round "07"]
[TimeControl "180+2"]
[Date "2023.03.07"]
[WhiteClock "0:00:27"]
[BlackClock "0:00:04"]

1. d4 {[%clk 0:03:00]}  d5 {[%clk 0:02:59]} 2. Nc3 {[%clk 0:03:00]}  Nf6 {[%clk 0:02:59]} 3. Bf4 {[%clk 0:02:59]}  c6 {[%clk 0:02:54]} 4. e3 {[%clk 0:02:58]}  Bf5 {[%clk 0:02:52]} 5. f3 {[%clk 0:02:58]}  e6 {[%clk 0:02:48]} 6. g4 {[%clk 0:02:57]}  Bg6 {[%clk 0:02:44]} 7. h4 {[%clk 0:02:56]}  h6 {[%clk 0:02:40]} 8. Bd3 {[%clk 0:02:55]}  Bxd3 {[%clk 0:02:37]} 9. cxd3 {[%clk 0:02:56]}  Bd6 {[%clk 0:02:37]} 10. Nh3 {[%clk 0:02:55]}  Bxf4 {[%clk 0:02:35]} 11. Nxf4 {[%clk 0:02:54]}  Nbd7 {[%clk 0:02:36]} 12. Qd2 {[%clk 0:02:51]}  c5 {[%clk 0:02:34]} 13. O-O-O {[%clk 0:02:33]}  Qa5 {[%clk 0:02:26]} 14. g5 {[%clk 0:02:32]}  cxd4 {[%clk 0:02:13]} 15. exd4 {[%clk 0:02:21]}  Ng8 {[%clk 0:02:05]} 16. g6 {[%clk 0:02:16]}  Rc8 {[%clk 0:01:43]} 17. Qe2 {[%clk 0:01:46]}  Rc6 {[%clk 0:01:17]} 18. Kb1 {[%clk 0:01:40]}  Ngf6 {[%clk 0:01:10]} 19. gxf7+ {[%clk 0:01:23]}  Kxf7 {[%clk 0:01:11]} 20. Qg2 {[%clk 0:01:21]}  Qb4 {[%clk 0:00:57]} 21. Qg6+ {[%clk 0:00:42]}  Kf8 {[%clk 0:00:54]} 22. Rhe1 {[%clk 0:00:40]}  e5 {[%clk 0:00:13]} 23. dxe5 {[%clk 0:00:36]}  Qxf4 {[%clk 0:00:12]} 24. exf6 {[%clk 0:00:33]}  Nxf6 {[%clk 0:00:09]} 25. Nxd5 {[%clk 0:00:31]}  Qxf3 {[%clk 0:00:04]} 26. Nxf6 {[%clk 0:00:27]} 1-0


[Site "https://www.chess.com"]

[Event "Titled Tuesday Blitz March 07 Early 2023"]
[White "Mikhaylova, Irina"]
[Black "Sarkar, Justin"]
[WhiteFideId "4109040"]
[BlackFideId "2010011"]
[WhiteElo "1966"]
[BlackElo "2189"]
[Result "1-0"]
[Round "07"]
[TimeControl "180+2"]
[Date "2023.03.07"]
[WhiteClock "0:00:45"]
[BlackClock "0:00:30"]

1. d4 {[%clk 0:03:00]}  Nf6 {[%clk 0:02:55]} 2. Nf3 {[%clk 0:03:01]}  d5 {[%clk 0:02:53]} 3. c4 {[%clk 0:03:01]}  e6 {[%clk 0:02:53]} 4. Nc3 {[%clk 0:03:01]}  Nbd7 {[%clk 0:02:39]} 5. Bg5 {[%clk 0:03:00]}  h6 {[%clk 0:02:27]} 6. Bh4 {[%clk 0:02:58]}  Be7 {[%clk 0:02:23]} 7. e3 {[%clk 0:02:57]}  O-O {[%clk 0:02:19]} 8. Qc2 {[%clk 0:02:57]}  c6 {[%clk 0:02:10]} 9. a3 {[%clk 0:02:53]}  a6 {[%clk 0:02:05]} 10. Rd1 {[%clk 0:02:52]}  dxc4 {[%clk 0:01:39]} 11. Bxc4 {[%clk 0:02:51]}  b5 {[%clk 0:01:40]} 12. Ba2 {[%clk 0:02:52]}  Bb7 {[%clk 0:01:39]} 13. Bb1 {[%clk 0:02:52]}  Qb6 {[%clk 0:01:17]} 14. Ne5 {[%clk 0:02:38]}  Rfd8 {[%clk 0:00:51]} 15. Nxd7 {[%clk 0:01:12]}  Rxd7 {[%clk 0:00:49]} 16. Bxf6 {[%clk 0:01:12]}  Bxf6 {[%clk 0:00:49]} 17. Qh7+ {[%clk 0:01:12]}  Kf8 {[%clk 0:00:50]} 18. Ne4 {[%clk 0:01:12]}  c5 {[%clk 0:00:30]} 19. Nxc5 {[%clk 0:00:45]} 1-0


[Site "https://www.chess.com"]

[Event "Titled Tuesday Blitz March 07 Early 2023"]
[White "Valgmae, Toomas"]
[Black "Qashashvili, Alexandre"]
[WhiteFideId "4502523"]
[BlackFideId "13600842"]
[WhiteElo "2170"]
[BlackElo "2405"]
[Result "1/2-1/2"]
[Round "07"]
[TimeControl "180+2"]
[Date "2023.03.07"]
[WhiteClock "0:00:22"]
[BlackClock "0:00:38"]

1. d4 {[%clk 0:03:00]}  c6 {[%clk 0:03:00]} 2. c4 {[%clk 0:03:00]}  d5 {[%clk 0:02:53]} 3. Nf3 {[%clk 0:02:59]}  Nf6 {[%clk 0:02:53]} 4. Nc3 {[%clk 0:02:59]}  Bf5 {[%clk 0:02:52]} 5. cxd5 {[%clk 0:02:59]}  Nxd5 {[%clk 0:02:52]} 6. Qb3 {[%clk 0:02:59]}  Qb6 {[%clk 0:02:52]} 7. Qxb6 {[%clk 0:02:53]}  Nxb6 {[%clk 0:02:51]} 8. e4 {[%clk 0:02:52]}  Bg6 {[%clk 0:02:51]} 9. Bf4 {[%clk 0:02:46]}  e6 {[%clk 0:02:51]} 10. O-O-O {[%clk 0:02:45]}  N8d7 {[%clk 0:02:49]} 11. Bd3 {[%clk 0:02:43]}  O-O-O {[%clk 0:02:48]} 12. Rhe1 {[%clk 0:02:39]}  h6 {[%clk 0:02:35]} 13. Bc2 {[%clk 0:02:36]}  Be7 {[%clk 0:02:26]} 14. b3 {[%clk 0:02:31]}  Ba3+ {[%clk 0:02:21]} 15. Kb1 {[%clk 0:02:31]}  Rhe8 {[%clk 0:02:18]} 16. g4 {[%clk 0:02:07]}  f6 {[%clk 0:02:18]} 17. Bg3 {[%clk 0:01:58]}  Nf8 {[%clk 0:02:15]} 18. Nh4 {[%clk 0:01:49]}  Bh7 {[%clk 0:02:06]} 19. Ng2 {[%clk 0:01:46]}  Bd6 {[%clk 0:02:02]} 20. f4 {[%clk 0:01:43]}  Ba3 {[%clk 0:02:02]} 21. f5 {[%clk 0:01:38]}  exf5 {[%clk 0:02:01]} 22. gxf5 {[%clk 0:01:38]}  g6 {[%clk 0:01:59]} 23. Nh4 {[%clk 0:01:31]}  gxf5 {[%clk 0:01:57]} 24. Nxf5 {[%clk 0:01:32]}  Bxf5 {[%clk 0:01:57]} 25. exf5 {[%clk 0:01:32]}  Bb4 {[%clk 0:01:53]} 26. Kb2 {[%clk 0:01:31]}  Rxe1 {[%clk 0:01:51]} 27. Bxe1 {[%clk 0:01:30]}  Re8 {[%clk 0:01:42]} 28. a3 {[%clk 0:01:28]}  Bxc3+ {[%clk 0:01:42]} 29. Bxc3 {[%clk 0:01:28]}  Nd5 {[%clk 0:01:42]} 30. Bd2 {[%clk 0:01:24]}  Re2 {[%clk 0:01:41]} 31. Bxh6 {[%clk 0:01:23]}  Nh7 {[%clk 0:01:34]} 32. Rd2 {[%clk 0:01:22]}  Re1 {[%clk 0:01:21]} 33. Rg2 {[%clk 0:01:19]}  Ng5 {[%clk 0:01:17]} 34. Bxg5 {[%clk 0:01:17]}  fxg5 {[%clk 0:01:18]} 35. Rxg5 {[%clk 0:01:09]}  Re2 {[%clk 0:01:18]} 36. Kc1 {[%clk 0:00:59]}  Rxh2 {[%clk 0:01:17]} 37. Be4 {[%clk 0:00:58]}  Rf2 {[%clk 0:01:14]} 38. Bxd5 {[%clk 0:00:54]}  cxd5 {[%clk 0:01:14]} 39. Kd1 {[%clk 0:00:51]}  Kd7 {[%clk 0:01:13]} 40. Ke1 {[%clk 0:00:51]}  Rf4 {[%clk 0:01:11]} 41. Ke2 {[%clk 0:00:50]}  Rxd4 {[%clk 0:01:10]} 42. Ke3 {[%clk 0:00:51]}  Rd1 {[%clk 0:01:06]} 43. Rg7+ {[%clk 0:00:49]}  Kc6 {[%clk 0:01:07]} 44. f6 {[%clk 0:00:49]}  Rf1 {[%clk 0:01:07]} 45. f7 {[%clk 0:00:49]}  Kd6 {[%clk 0:01:03]} 46. Kd4 {[%clk 0:00:48]}  Rf4+ {[%clk 0:01:02]} 47. Ke3 {[%clk 0:00:47]}  Rf1 {[%clk 0:00:51]} 48. f8=Q+ {[%clk 0:00:46]}  Rxf8 {[%clk 0:00:50]} 49. Rxb7 {[%clk 0:00:47]}  Ra8 {[%clk 0:00:40]} 50. Kd4 {[%clk 0:00:45]}  Kc6 {[%clk 0:00:40]} 51. Rh7 {[%clk 0:00:42]}  Rb8 {[%clk 0:00:40]} 52. b4 {[%clk 0:00:40]}  a5 {[%clk 0:00:40]} 53. bxa5 {[%clk 0:00:27]}  Rb5 {[%clk 0:00:39]} 54. Rh6+ {[%clk 0:00:22]}  Kb7 {[%clk 0:00:38]} 55. Rb6+ {[%clk 0:00:19]}  Rxb6 {[%clk 0:00:36]} 56. axb6 {[%clk 0:00:20]}  Kxb6 {[%clk 0:00:37]} 57. Kxd5 {[%clk 0:00:21]}  Kb5 {[%clk 0:00:38]} 58. a4+ {[%clk 0:00:22]}  Kxa4 {[%clk 0:00:38]} 1/2-1/2


[Site "https://www.chess.com"]

[Event "Titled Tuesday Blitz March 07 Early 2023"]
[White "Tarnowska, Aleksandra"]
[Black "Vifleemskaia, Svetlana"]
[WhiteFideId "1180967"]
[BlackFideId "4129490"]
[WhiteElo "1776"]
[BlackElo "1930"]
[Result "0-1"]
[Round "07"]
[TimeControl "180+2"]
[Date "2023.03.07"]
[WhiteClock "0:00:01"]
[BlackClock "0:01:19"]

1. e4 {[%clk 0:03:00]}  e5 {[%clk 0:02:59]} 2. Nf3 {[%clk 0:03:01]}  Nc6 {[%clk 0:02:59]} 3. Bb5 {[%clk 0:03:02]}  a6 {[%clk 0:02:59]} 4. Ba4 {[%clk 0:03:02]}  Nf6 {[%clk 0:02:59]} 5. O-O {[%clk 0:03:03]}  Be7 {[%clk 0:02:59]} 6. Re1 {[%clk 0:03:01]}  b5 {[%clk 0:02:59]} 7. Bb3 {[%clk 0:03:01]}  d6 {[%clk 0:03:00]} 8. h3 {[%clk 0:03:00]}  O-O {[%clk 0:02:59]} 9. c3 {[%clk 0:02:55]}  Nd7 {[%clk 0:02:56]} 10. d4 {[%clk 0:02:40]}  Bf6 {[%clk 0:02:56]} 11. Be3 {[%clk 0:02:17]}  Na5 {[%clk 0:02:48]} 12. Bc2 {[%clk 0:02:15]}  Nc4 {[%clk 0:02:47]} 13. dxe5 {[%clk 0:01:57]}  Nxe3 {[%clk 0:02:44]} 14. Rxe3 {[%clk 0:01:52]}  Nxe5 {[%clk 0:02:43]} 15. Nbd2 {[%clk 0:01:45]}  Bb7 {[%clk 0:02:41]} 16. Nxe5 {[%clk 0:01:37]}  Bxe5 {[%clk 0:02:40]} 17. Qg4 {[%clk 0:01:34]}  Qf6 {[%clk 0:02:32]} 18. Rf3 {[%clk 0:01:11]}  Qg6 {[%clk 0:02:22]} 19. Qxg6 {[%clk 0:01:09]}  hxg6 {[%clk 0:02:22]} 20. g3 {[%clk 0:00:43]}  g5 {[%clk 0:02:21]} 21. Re3 {[%clk 0:00:38]}  g6 {[%clk 0:02:17]} 22. Nf3 {[%clk 0:00:37]}  Bf6 {[%clk 0:02:16]} 23. Nh2 {[%clk 0:00:32]}  Rfe8 {[%clk 0:02:15]} 24. Ng4 {[%clk 0:00:31]}  Bg7 {[%clk 0:02:14]} 25. Rae1 {[%clk 0:00:32]}  Rad8 {[%clk 0:02:05]} 26. f4 {[%clk 0:00:31]}  gxf4 {[%clk 0:02:03]} 27. gxf4 {[%clk 0:00:32]}  Kf8 {[%clk 0:01:59]} 28. f5 {[%clk 0:00:24]}  gxf5 {[%clk 0:01:48]} 29. exf5 {[%clk 0:00:25]}  Rxe3 {[%clk 0:01:43]} 30. Rxe3 {[%clk 0:00:26]}  Re8 {[%clk 0:01:42]} 31. Rxe8+ {[%clk 0:00:26]}  Kxe8 {[%clk 0:01:42]} 32. f6 {[%clk 0:00:27]}  Bh8 {[%clk 0:01:38]} 33. Bf5 {[%clk 0:00:24]}  Bf3 {[%clk 0:01:37]} 34. Bc8 {[%clk 0:00:19]}  a5 {[%clk 0:01:36]} 35. Ba6 {[%clk 0:00:18]}  b4 {[%clk 0:01:36]} 36. cxb4 {[%clk 0:00:18]}  axb4 {[%clk 0:01:35]} 37. Bb5+ {[%clk 0:00:14]}  Kf8 {[%clk 0:01:31]} 38. b3 {[%clk 0:00:04]}  Bxg4 {[%clk 0:01:30]} 39. hxg4 {[%clk 0:00:05]}  Bxf6 {[%clk 0:01:30]} 40. Bc6 {[%clk 0:00:05]}  Ke7 {[%clk 0:01:30]} 41. Kf2 {[%clk 0:00:06]}  Ke6 {[%clk 0:01:31]} 42. Kf3 {[%clk 0:00:07]}  Ke5 {[%clk 0:01:31]} 43. Be4 {[%clk 0:00:06]}  Bg5 {[%clk 0:01:31]} 44. Bf5 {[%clk 0:00:06]}  c6 {[%clk 0:01:31]} 45. Bd7 {[%clk 0:00:06]}  Kd5 {[%clk 0:01:29]} 46. Be8 {[%clk 0:00:05]}  f6 {[%clk 0:01:29]} 47. Bf7+ {[%clk 0:00:04]}  Kd4 {[%clk 0:01:29]} 48. Be8 {[%clk 0:00:04]}  c5 {[%clk 0:01:26]} 49. Bg6 {[%clk 0:00:04]}  d5 {[%clk 0:01:26]} 50. Bf7 {[%clk 0:00:04]}  c4 {[%clk 0:01:25]} 51. bxc4 {[%clk 0:00:04]}  dxc4 {[%clk 0:01:26]} 52. Be6 {[%clk 0:00:03]}  Kc3 {[%clk 0:01:26]} 53. Ke2 {[%clk 0:00:03]}  b3 {[%clk 0:01:20]} 54. axb3 {[%clk 0:00:03]}  cxb3 {[%clk 0:01:20]} 55. Kd1 {[%clk 0:00:01]}  Kb2 {[%clk 0:01:19]} 0-1


[Site "https://www.chess.com"]

[Event "Titled Tuesday Blitz March 07 Early 2023"]
[White "Ciuffoletti, Paolo"]
[Black "Fabris, Alberto"]
[WhiteFideId "807630"]
[BlackFideId "801348"]
[WhiteElo "2143"]
[BlackElo "2143"]
[Result "0-1"]
[Round "07"]
[TimeControl "180+2"]
[Date "2023.03.07"]
[WhiteClock "0:00:54"]
[BlackClock "0:01:17"]

1. e4 {[%clk 0:03:00]}  c5 {[%clk 0:02:59]} 2. d4 {[%clk 0:03:00]}  cxd4 {[%clk 0:02:59]} 3. c3 {[%clk 0:03:00]}  d3 {[%clk 0:02:59]} 4. Bxd3 {[%clk 0:02:59]}  Nc6 {[%clk 0:02:59]} 5. c4 {[%clk 0:02:59]}  g6 {[%clk 0:03:00]} 6. Nc3 {[%clk 0:02:59]}  Bg7 {[%clk 0:03:00]} 7. Nf3 {[%clk 0:02:59]}  d6 {[%clk 0:03:00]} 8. O-O {[%clk 0:02:59]}  Nf6 {[%clk 0:03:01]} 9. h3 {[%clk 0:02:59]}  O-O {[%clk 0:03:01]} 10. Be3 {[%clk 0:02:53]}  a6 {[%clk 0:02:59]} 11. Qd2 {[%clk 0:02:52]}  Re8 {[%clk 0:02:52]} 12. Rac1 {[%clk 0:02:50]}  Qa5 {[%clk 0:02:40]} 13. Nd5 {[%clk 0:02:32]}  Qxd2 {[%clk 0:02:39]} 14. Nxd2 {[%clk 0:02:28]}  Nxd5 {[%clk 0:02:37]} 15. cxd5 {[%clk 0:02:16]}  Ne5 {[%clk 0:02:19]} 16. Be2 {[%clk 0:02:09]}  f5 {[%clk 0:02:17]} 17. f4 {[%clk 0:01:57]}  Nf7 {[%clk 0:02:17]} 18. exf5 {[%clk 0:01:41]}  Bxf5 {[%clk 0:02:15]} 19. g4 {[%clk 0:01:38]}  Bc8 {[%clk 0:02:02]} 20. Rc7 {[%clk 0:01:33]}  Bxb2 {[%clk 0:01:58]} 21. Rb1 {[%clk 0:01:30]}  Bg7 {[%clk 0:01:54]} 22. Nc4 {[%clk 0:01:19]}  b5 {[%clk 0:01:51]} 23. Nb6 {[%clk 0:01:18]}  Rb8 {[%clk 0:01:51]} 24. Rbc1 {[%clk 0:01:15]}  Bb7 {[%clk 0:01:47]} 25. Nd7 {[%clk 0:01:15]}  Bxd5 {[%clk 0:01:38]} 26. Nxb8 {[%clk 0:01:13]}  Rxb8 {[%clk 0:01:38]} 27. Rxe7 {[%clk 0:01:11]}  Bxa2 {[%clk 0:01:34]} 28. Ra1 {[%clk 0:01:02]}  Bxa1 {[%clk 0:01:27]} 29. f5 {[%clk 0:01:00]}  gxf5 {[%clk 0:01:25]} 30. gxf5 {[%clk 0:01:00]}  Bf6 {[%clk 0:01:21]} 31. Ra7 {[%clk 0:00:56]}  Bc4 {[%clk 0:01:19]} 32. Bf3 {[%clk 0:00:54]}  b4 {[%clk 0:01:17]} 0-1


[Site "https://www.chess.com"]